[Event "Open Nuevo Centro. Jornada 1"]
[Site "Chess.com"]
[Date "2020.06.19"]
[Round "2"]
[White "Yeste Campos, Manuel"]
[Black "Beneyto de Ramon, Guillermo"]
[Result "0-1"]
[WhiteElo "921"]
[BlackElo "1489"]
[TimeControl "180+2"]
[EndTime "10:49:28 PDT"]
[Termination "Victoria de GUILLETE por jaque mate"]

1. e4 {[%clk 0:03:01.9]} 1... Nf6 {[%clk 0:03:00.4]} 2. Nc3 {[%clk 0:03:01.5]}
2... e5 {[%clk 0:03:01.4]} 3. Nf3 {[%clk 0:03:00.5]} 3... Nc6 {[%clk 0:03:01.9]}
4. Bb5 {[%clk 0:03:01.1]} 4... Nd4 {[%clk 0:03:01.8]} 5. Nxd4 {[%clk 0:03:00.6]}
5... exd4 {[%clk 0:03:02.5]} 6. Ne2 {[%clk 0:03:01.5]} 6... c6 {[%clk
0:02:45.5]} 7. Ba4 {[%clk 0:02:58.2]} 7... d5 {[%clk 0:02:22.1]} 8. exd5 {[%clk
0:02:56.4]} 8... Qxd5 {[%clk 0:02:14.1]} 9. O-O {[%clk 0:02:48.8]} 9... Be7
{[%clk 0:02:13.1]} 10. Nf4 {[%clk 0:02:46.2]} 10... Qg5 {[%clk 0:02:06]} 11. Nh3
{[%clk 0:02:36.5]} 11... Bxh3 {[%clk 0:02:01.1]} 12. g3 {[%clk 0:02:34.8]} 12...
Qd5 {[%clk 0:01:53.3]} 13. f3 {[%clk 0:02:24.1]} 13... Bxf1 {[%clk 0:01:53]} 14.
Qxf1 {[%clk 0:02:24.5]} 14... d3 {[%clk 0:01:43]} 15. cxd3 {[%clk 0:02:20.2]}
15... Qd4+ {[%clk 0:01:43.1]} 16. Kg2 {[%clk 0:02:15.4]} 16... Qxa4 {[%clk
0:01:43.3]} 17. b3 {[%clk 0:02:15.2]} 17... Qb4 {[%clk 0:01:42.5]} 18. Bb2
{[%clk 0:02:09.5]} 18... O-O {[%clk 0:01:40.8]} 19. g4 {[%clk 0:02:06.9]} 19...
Qxd2+ {[%clk 0:01:40.7]} 20. Qf2 {[%clk 0:02:05.1]} 20... Qxf2+ {[%clk
0:01:38.6]} 21. Kxf2 {[%clk 0:02:05.2]} 21... Bc5+ {[%clk 0:01:39.1]} 22. Kg3
{[%clk 0:02:05.6]} 22... Nd5 {[%clk 0:01:38.4]} 23. d4 {[%clk 0:02:05.6]} 23...
Bb6 {[%clk 0:01:38.2]} 24. Re1 {[%clk 0:02:04.3]} 24... Rfe8 {[%clk 0:01:38.4]}
25. Rf1 {[%clk 0:02:02.8]} 25... Ne3 {[%clk 0:01:36.9]} 26. Rg1 {[%clk
0:01:56.4]} 26... Rad8 {[%clk 0:01:32.3]} 27. d5 {[%clk 0:01:54]} 27... Nf5+
{[%clk 0:01:30.5]} 28. gxf5 {[%clk 0:01:53]} 28... Bxg1 {[%clk 0:01:31]} 29. Kg2
{[%clk 0:01:52.5]} 29... Bb6 {[%clk 0:01:29.6]} 30. Kh3 {[%clk 0:01:44.8]} 30...
Rxd5 {[%clk 0:01:27.3]} 31. Kg2 {[%clk 0:01:43]} 31... Rd2+ {[%clk 0:01:25.5]}
32. Kh3 {[%clk 0:01:43]} 32... Ree2 {[%clk 0:01:23.4]} 33. Bc3 {[%clk
0:01:40.8]} 33... Rc2 {[%clk 0:01:23.4]} 34. Bxg7 {[%clk 0:01:34.7]} 34... Bc7
{[%clk 0:01:14]} 35. Kg4 {[%clk 0:01:31.3]} 35... Rg2+ {[%clk 0:01:13.1]} 36.
Kh4 {[%clk 0:01:27.9]} 36... Rxh2+ {[%clk 0:01:14]} 37. Kg4 {[%clk 0:01:28.3]}
37... Rcg2# {[%clk 0:01:15.5]} 0

[Event "Open Nuevo Centro. Jornada 1"]
[Site "Chess.com"]
[Date "2020.06.19"]
[Round "2"]
[White "Lupu, Alexandru Mihai"]
[Black "Cebri�n Granado, Guille"]
[Result "1-0"]
[WhiteElo "1023"]
[BlackElo "380"]
[TimeControl "180+2"]
[EndTime "10:49:29 PDT"]
[Termination "Victoria de KeenYoyo por jaque mate"]

1. d4 {[%clk 0:03:01.9]} 1... d5 {[%clk 0:02:56]} 2. Bf4 {[%clk 0:03:01.2]} 2...
Bf5 {[%clk 0:02:51.5]} 3. e3 {[%clk 0:02:58.2]} 3... Nc6 {[%clk 0:02:53.4]} 4.
c3 {[%clk 0:02:53.7]} 4... Nf6 {[%clk 0:02:55.3]} 5. Bd3 {[%clk 0:02:41.6]} 5...
e6 {[%clk 0:02:57.2]} 6. Bxf5 {[%clk 0:02:39.9]} 6... Qd6 {[%clk 0:02:55.9]} 7.
Bxd6 {[%clk 0:02:39.5]} 7... cxd6 {[%clk 0:02:50.5]} 8. Nf3 {[%clk 0:02:37]}
8... exf5 {[%clk 0:02:52.4]} 9. Nbd2 {[%clk 0:02:34.9]} 9... g5 {[%clk
0:02:52.1]} 10. Nxg5 {[%clk 0:02:32.3]} 10... Be7 {[%clk 0:02:37.3]} 11. Ngf3
{[%clk 0:02:27.4]} 11... h5 {[%clk 0:02:36.4]} 12. O-O {[%clk 0:02:23.7]} 12...
Rg8 {[%clk 0:02:38.3]} 13. h3 {[%clk 0:02:21.4]} 13... Rg5 {[%clk 0:02:18.3]}
14. Nxg5 {[%clk 0:02:19.9]} 14... O-O-O {[%clk 0:02:16.8]} 15. Nxf7 {[%clk
0:02:18.2]} 15... b6 {[%clk 0:02:18.7]} 16. Nxd8 {[%clk 0:02:18.3]} 16... Kxd8
{[%clk 0:02:18.4]} 17. Re1 {[%clk 0:02:17.1]} 17... a5 {[%clk 0:02:20.3]} 18. f3
{[%clk 0:02:17.1]} 18... b5 {[%clk 0:02:20.6]} 19. e4 {[%clk 0:02:10.1]} 19...
b4 {[%clk 0:02:22.5]} 20. exd5 {[%clk 0:01:52.3]} 20... a4 {[%clk 0:02:24.4]}
21. dxc6 {[%clk 0:01:52.5]} 21... Kc7 {[%clk 0:02:22.1]} 22. Qxa4 {[%clk
0:01:49.6]} 22... d5 {[%clk 0:02:20.2]} 23. Rxe7+ {[%clk 0:01:45.2]} 23... Kd6
{[%clk 0:02:18.3]} 24. Qxb4+ {[%clk 0:01:41.2]} 24... Kxc6 {[%clk 0:01:06.2]}
25. Ree1 {[%clk 0:01:28.3]} 25... f4 {[%clk 0:01:05.8]} 26. a3 {[%clk
0:01:22.9]} 26... Kc7 {[%clk 0:01:07.7]} 27. a4 {[%clk 0:01:23.3]} 27... Nd7
{[%clk 0:01:06.9]} 28. a5 {[%clk 0:01:22.8]} 28... Nb8 {[%clk 0:01:03.6]} 29.
Re7+ {[%clk 0:01:14.6]} 29... Kc8 {[%clk 0:00:59.2]} 30. Qa4 {[%clk 0:01:03.4]}
30... Na6 {[%clk 0:01:01.1]} 31. Qe8# {[%clk 0:01:00.9]} 1

[Event "Open Nuevo Centro. Jornada 1"]
[Site "Chess.com"]
[Date "2020.06.19"]
[Round "2"]
[White "Camison Zornoza, Cesar"]
[Black "Hern�ndez Tom�s, Efr�n"]
[Result "1-0"]
[WhiteElo "1412"]
[BlackElo "895"]
[TimeControl "180+2"]
[EndTime "10:49:47 PDT"]
[Termination "Victoria de cczchess2019 por jaque mate"]

1. e4 {[%clk 0:02:55.9]} 1... e5 {[%clk 0:03:00.2]} 2. Nf3 {[%clk 0:02:56.1]}
2... Nf6 {[%clk 0:03:00.6]} 3. Nc3 {[%clk 0:02:56.3]} 3... Nc6 {[%clk
0:02:59.5]} 4. Nxe5 {[%clk 0:02:56.9]} 4... Nxe5 {[%clk 0:02:59]} 5. d4 {[%clk
0:02:58.1]} 5... Nc6 {[%clk 0:02:55.4]} 6. d5 {[%clk 0:02:59]} 6... Ne5 {[%clk
0:02:55.3]} 7. f4 {[%clk 0:02:59.2]} 7... Neg4 {[%clk 0:02:49.6]} 8. e5 {[%clk
0:02:55.7]} 8... Nxd5 {[%clk 0:02:45.9]} 9. Nxd5 {[%clk 0:02:54]} 9... d6 {[%clk
0:02:41.2]} 10. Be2 {[%clk 0:02:39.3]} 10... f5 {[%clk 0:02:20.7]} 11. exf6
{[%clk 0:02:35]} 11... Qd7 {[%clk 0:02:11.2]} 12. Bxg4 {[%clk 0:02:28.4]} 12...
Qxg4 {[%clk 0:02:10]} 13. Qxg4 {[%clk 0:02:28.7]} 13... Bxg4 {[%clk 0:02:09.8]}
14. Nxc7+ {[%clk 0:02:28.4]} 14... Kd7 {[%clk 0:02:05.1]} 15. Nxa8 {[%clk
0:02:28.1]} 15... gxf6 {[%clk 0:02:06]} 16. O-O {[%clk 0:02:18]} 16... Bh6
{[%clk 0:02:03.9]} 17. h3 {[%clk 0:02:18.3]} 17... Be6 {[%clk 0:02:03.3]} 18. f5
{[%clk 0:02:14.5]} 18... Bc4 {[%clk 0:02:01]} 19. Bxh6 {[%clk 0:02:12.5]} 19...
Bxf1 {[%clk 0:02:01.3]} 20. Rxf1 {[%clk 0:02:12.6]} 20... Rxa8 {[%clk
0:01:59.8]} 21. Bg7 {[%clk 0:02:11.2]} 21... Rg8 {[%clk 0:01:58.2]} 22. Bxf6
{[%clk 0:02:10.9]} 22... Rf8 {[%clk 0:01:57.5]} 23. Bd4 {[%clk 0:02:09.9]} 23...
b6 {[%clk 0:01:54.5]} 24. c4 {[%clk 0:02:09.1]} 24... Kc6 {[%clk 0:01:54.8]} 25.
b3 {[%clk 0:02:09.9]} 25... d5 {[%clk 0:01:54.8]} 26. cxd5+ {[%clk 0:02:09]}
26... Kxd5 {[%clk 0:01:55.6]} 27. Bb2 {[%clk 0:02:07.4]} 27... Ke4 {[%clk
0:01:49.2]} 28. f6 {[%clk 0:02:08.6]} 28... Kd5 {[%clk 0:01:50.1]} 29. g4 {[%clk
0:02:08.3]} 29... Ke6 {[%clk 0:01:51.4]} 30. g5 {[%clk 0:02:08.9]} 30... h6
{[%clk 0:01:44.6]} 31. h4 {[%clk 0:02:09.1]} 31... hxg5 {[%clk 0:01:43.9]} 32.
hxg5 {[%clk 0:02:09.9]} 32... Rg8 {[%clk 0:01:44.6]} 33. Bc1 {[%clk 0:02:10.5]}
33... a5 {[%clk 0:01:41.4]} 34. Kg2 {[%clk 0:02:10.3]} 34... b5 {[%clk
0:01:41.1]} 35. Kg3 {[%clk 0:02:11.5]} 35... b4 {[%clk 0:01:40.8]} 36. Kg4
{[%clk 0:02:10.9]} 36... Kf7 {[%clk 0:01:28.8]} 37. Re1 {[%clk 0:02:08.6]} 37...
Kg6 {[%clk 0:01:21.8]} 38. Re7 {[%clk 0:02:06.5]} 38... a4 {[%clk 0:01:04.4]}
39. Bd2 {[%clk 0:02:01]} 39... axb3 {[%clk 0:01:01.2]} 40. axb3 {[%clk
0:02:01.4]} 40... Rg7 {[%clk 0:00:56.8]} 41. fxg7 {[%clk 0:02:00.6]} 41... Kh7
{[%clk 0:00:55.9]} 42. Kf5 {[%clk 0:01:54.3]} 42... Kg8 {[%clk 0:00:54.3]} 43.
Kf6 {[%clk 0:01:51]} 43... Kh7 {[%clk 0:00:52.6]} 44. g6+ {[%clk 0:01:49.5]}
44... Kg8 {[%clk 0:00:52.7]} 45. Re8# {[%clk 0:01:50.5]} 1

[Event "Open Nuevo Centro. Jornada 1"]
[Site "Chess.com"]
[Date "2020.06.19"]
[Round "2"]
[White "Mart�nez Cuenca, Adri�n "]
[Black "Juan Alos, Sergio"]
[Result "0-1"]
[WhiteElo "730"]
[BlackElo "1256"]
[TimeControl "180+2"]
[EndTime "10:49:51 PDT"]
[Termination "Victoria de SergioJuanAlos por jaque mate"]

1. e4 {[%clk 0:03:01.9]} 1... c6 {[%clk 0:02:45.6]} 2. Bc4 {[%clk 0:02:59.1]}
2... d5 {[%clk 0:02:46.6]} 3. Be2 {[%clk 0:02:57.6]} 3... dxe4 {[%clk
0:02:43.4]} 4. Bc4 {[%clk 0:02:53.5]} 4... Nf6 {[%clk 0:02:44.8]} 5. f3 {[%clk
0:02:48.1]} 5... exf3 {[%clk 0:02:45.5]} 6. gxf3 {[%clk 0:02:50]} 6... Bf5
{[%clk 0:02:40.1]} 7. Nh3 {[%clk 0:02:51.9]} 7... Bxh3 {[%clk 0:02:38.7]} 8. f4
{[%clk 0:02:28.1]} 8... Bg2 {[%clk 0:02:35.6]} 9. Rg1 {[%clk 0:02:07.4]} 9...
Bd5 {[%clk 0:02:35]} 10. Bxd5 {[%clk 0:02:05.4]} 10... Nxd5 {[%clk 0:02:36.9]}
11. Kf2 {[%clk 0:01:59.8]} 11... Nxf4 {[%clk 0:02:34.8]} 12. Kf3 {[%clk
0:01:55.3]} 12... Nh3 {[%clk 0:02:34.3]} 13. Qe2 {[%clk 0:01:54]} 13... Nxg1+
{[%clk 0:02:34.3]} 14. Kg2 {[%clk 0:01:47.1]} 14... Nxe2 {[%clk 0:02:36.2]} 15.
Kf2 {[%clk 0:01:44.4]} 15... Nxc1 {[%clk 0:02:37.5]} 16. a4 {[%clk 0:01:35.7]}
16... Qd4+ {[%clk 0:02:36.9]} 17. Kf3 {[%clk 0:01:34.2]} 17... Qxb2 {[%clk
0:02:31.6]} 18. Ra3 {[%clk 0:01:25]} 18... Qb3+ {[%clk 0:02:33.5]} 19. Rxb3
{[%clk 0:01:24]} 19... Nxb3 {[%clk 0:02:33.7]} 20. cxb3 {[%clk 0:01:19.3]} 20...
Nd7 {[%clk 0:02:28.5]} 21. d4 {[%clk 0:01:19.1]} 21... e5 {[%clk 0:02:28.8]} 22.
dxe5 {[%clk 0:01:16.4]} 22... Nxe5+ {[%clk 0:02:30.7]} 23. Ke4 {[%clk
0:01:15.5]} 23... Ng4 {[%clk 0:02:29.3]} 24. h3 {[%clk 0:01:03.7]} 24... Nf2+
{[%clk 0:02:29.7]} 25. Kf3 {[%clk 0:00:50.3]} 25... Nxh3 {[%clk 0:02:31.6]} 26.
Kg3 {[%clk 0:00:46.8]} 26... Ng5 {[%clk 0:02:32.1]} 27. Kg4 {[%clk 0:00:45.4]}
27... Rd8 {[%clk 0:02:34]} 28. Kxg5 {[%clk 0:00:36.9]} 28... Rd1 {[%clk
0:02:35.9]} 29. Nc3 {[%clk 0:00:35.8]} 29... Rc1 {[%clk 0:02:36]} 30. Ne4 {[%clk
0:00:35]} 30... Rb1 {[%clk 0:02:34.8]} 31. Nd6+ {[%clk 0:00:30.9]} 31... Bxd6
{[%clk 0:02:34.6]} 32. a5 {[%clk 0:00:28.6]} 32... Rf1 {[%clk 0:02:32.4]} 33. b4
{[%clk 0:00:21]} 33... b6 {[%clk 0:02:33.1]} 34. axb6 {[%clk 0:00:19]} 34...
axb6 {[%clk 0:02:35]} 35. b5 {[%clk 0:00:18.6]} 35... c5 {[%clk 0:02:34.8]} 36.
Kg4 {[%clk 0:00:16.8]} 36... c4 {[%clk 0:02:36.7]} 37. Kh3 {[%clk 0:00:17]}
37... c3 {[%clk 0:02:38.6]} 38. Kg2 {[%clk 0:00:16.9]} 38... c2 {[%clk
0:02:40.5]} 39. Kxf1 {[%clk 0:00:17.5]} 39... c1=Q+ {[%clk 0:02:42.4]} 40. Kf2
{[%clk 0:00:18.4]} 40... Qc3 {[%clk 0:02:40.7]} 41. Ke2 {[%clk 0:00:18.9]} 41...
Qd4 {[%clk 0:02:37.7]} 42. Ke1 {[%clk 0:00:19.2]} 42... Qd3 {[%clk 0:02:38.2]}
43. Kf2 {[%clk 0:00:17.9]} 43... Qe4 {[%clk 0:02:38.2]} 44. Kf1 {[%clk
0:00:17.5]} 44... Qe3 {[%clk 0:02:39.2]} 45. Kg2 {[%clk 0:00:17.4]} 45... Qf4
{[%clk 0:02:38.7]} 46. Kh3 {[%clk 0:00:16.8]} 46... Qg3# {[%clk 0:02:39.2]} 0

[Event "Open Nuevo Centro. Jornada 1"]
[Site "Chess.com"]
[Date "2020.06.19"]
[Round "2"]
[White "Donate Moreno, Silvia"]
[Black "Alegre Romaguera, Francesc"]
[Result "0-1"]
[WhiteElo "1776"]
[BlackElo "1223"]
[TimeControl "180+2"]
[EndTime "10:50:03 PDT"]
[Termination "Victoria de Francesc_08 por abandono"]

1. Nf3 {[%clk 0:03:01.9]} 1... Nf6 {[%clk 0:03:00.2]} 2. d4 {[%clk 0:03:01]}
2... g6 {[%clk 0:03:01.3]} 3. e3 {[%clk 0:02:55.9]} 3... Bg7 {[%clk 0:03:02.5]}
4. Bd3 {[%clk 0:02:56.6]} 4... d6 {[%clk 0:03:03.3]} 5. O-O {[%clk 0:02:55.4]}
5... O-O {[%clk 0:03:03.7]} 6. c4 {[%clk 0:02:55.8]} 6... Nbd7 {[%clk 0:03:04]}
7. b3 {[%clk 0:02:53.3]} 7... c5 {[%clk 0:03:03.3]} 8. Bb2 {[%clk 0:02:53.5]}
8... cxd4 {[%clk 0:02:57.7]} 9. exd4 {[%clk 0:02:53.8]} 9... e5 {[%clk 0:02:58]}
10. dxe5 {[%clk 0:02:53]} 10... dxe5 {[%clk 0:02:38.6]} 11. Nxe5 {[%clk
0:02:43.7]} 11... Ng4 {[%clk 0:02:30.5]} 12. f4 {[%clk 0:01:59.7]} 12... Ne3
{[%clk 0:02:23.3]} 13. Qe2 {[%clk 0:01:58]} 13... Nxf1 {[%clk 0:02:22.2]} 14.
Qxf1 {[%clk 0:01:58.5]} 14... Nxe5 {[%clk 0:02:20.9]} 15. fxe5 {[%clk
0:01:58.8]} 15... Qb6+ {[%clk 0:02:15]} 16. Kh1 {[%clk 0:01:58.1]} 16... Qc5
{[%clk 0:02:06.8]} 17. Ba3 {[%clk 0:01:16.4]} 17... Qxe5 {[%clk 0:02:00.9]} 18.
Bxf8 {[%clk 0:01:17]} 18... Qxa1 {[%clk 0:02:00.2]} 19. Bxg7 {[%clk 0:01:17.6]}
19... Qxg7 {[%clk 0:02:00.1]} 20. Be4 {[%clk 0:01:06.5]} 20... f5 {[%clk
0:01:44.3]} 21. Bd5+ {[%clk 0:01:06.1]} 21... Kf8 {[%clk 0:01:39.9]} 22. Qf4
{[%clk 0:00:33.6]} 22... Qe7 {[%clk 0:01:18.1]} 23. Nd2 {[%clk 0:00:22.7]} 23...
Be6 {[%clk 0:00:54.4]} 24. Bxb7 {[%clk 0:00:21.1]} 24... Qxb7 {[%clk 0:00:50.2]}
25. Qh6+ {[%clk 0:00:19]} 25... Qg7 {[%clk 0:00:50.3]} 0

[Event "Open Nuevo Centro. Jornada 1"]
[Site "Chess.com"]
[Date "2020.06.19"]
[Round "2"]
[White "Zamora Soler, Raul"]
[Black "Ainsa Jimenez, Lucas"]
[Result "1-0"]
[WhiteElo "1764"]
[BlackElo "953"]
[TimeControl "180+2"]
[EndTime "10:50:03 PDT"]
[Termination "Victoria de rzamora80 por jaque mate"]

1. e4 {[%clk 0:03:01.9]} 1... e5 {[%clk 0:02:59.7]} 2. Nf3 {[%clk 0:03:01.9]}
2... Nc6 {[%clk 0:03:00]} 3. d4 {[%clk 0:03:02.3]} 3... exd4 {[%clk 0:03:00.2]}
4. Nxd4 {[%clk 0:03:02.6]} 4... Nxd4 {[%clk 0:02:57.5]} 5. Qxd4 {[%clk
0:03:02.6]} 5... Nf6 {[%clk 0:02:52.2]} 6. c4 {[%clk 0:03:01.5]} 6... c6 {[%clk
0:02:50]} 7. Nc3 {[%clk 0:03:01.6]} 7... Ng4 {[%clk 0:02:37.7]} 8. e5 {[%clk
0:02:30.2]} 8... Nh6 {[%clk 0:02:18.4]} 9. Bxh6 {[%clk 0:02:28.7]} 9... gxh6
{[%clk 0:02:18.1]} 10. O-O-O {[%clk 0:02:29.6]} 10... Qg5+ {[%clk 0:02:12]} 11.
Qd2 {[%clk 0:02:26.7]} 11... Qg6 {[%clk 0:02:09.6]} 12. f4 {[%clk 0:02:22.7]}
12... d6 {[%clk 0:01:59.8]} 13. exd6 {[%clk 0:02:15.4]} 13... Bd7 {[%clk
0:01:53.7]} 14. c5 {[%clk 0:02:10]} 14... O-O-O {[%clk 0:01:46.5]} 15. Bd3
{[%clk 0:02:10.2]} 15... Qg7 {[%clk 0:01:39.7]} 16. g3 {[%clk 0:02:07]} 16...
Bg4 {[%clk 0:01:39.3]} 17. Rde1 {[%clk 0:02:07.2]} 17... Bf3 {[%clk 0:01:22.3]}
18. Rhf1 {[%clk 0:01:55.3]} 18... Bg4 {[%clk 0:01:09.7]} 19. Re5 {[%clk
0:01:44.6]} 19... Be6 {[%clk 0:00:55]} 20. Rfe1 {[%clk 0:01:24.5]} 20... Qf6
{[%clk 0:00:47.2]} 21. Ne4 {[%clk 0:01:14.4]} 21... Qg7 {[%clk 0:00:41]} 22. Qa5
{[%clk 0:01:13.4]} 22... h5 {[%clk 0:00:19.6]} 23. Qxa7 {[%clk 0:01:12.4]} 23...
h6 {[%clk 0:00:16.9]} 24. Qa8+ {[%clk 0:01:12.3]} 24... Kd7 {[%clk 0:00:16.3]}
25. Qxb7+ {[%clk 0:01:13.1]} 25... Ke8 {[%clk 0:00:16.3]} 26. Qxc6+ {[%clk
0:01:04.9]} 26... Rd7 {[%clk 0:00:16.7]} 27. Qc8+ {[%clk 0:01:01.8]} 27... Rd8
{[%clk 0:00:17.2]} 28. Bb5# {[%clk 0:01:01.9]} 1

[Event "Open Nuevo Centro. Jornada 1"]
[Site "Chess.com"]
[Date "2020.06.19"]
[Round "2"]
[White "Bosch Jord�, Ricard"]
[Black "Gil Lopez, Alejandro"]
[Result "0-1"]
[WhiteElo "1577"]
[BlackElo "2045"]
[TimeControl "180+2"]
[EndTime "10:50:04 PDT"]
[Termination "Victoria de AglVal0313 por abandono"]

1. e4 {[%clk 0:03:01.9]} 1... c5 {[%clk 0:03:00.6]} 2. Nf3 {[%clk 0:03:01.4]}
2... g6 {[%clk 0:03:01.8]} 3. d4 {[%clk 0:02:59.2]} 3... cxd4 {[%clk 0:03:03.7]}
4. Nxd4 {[%clk 0:03:00.7]} 4... Bg7 {[%clk 0:03:04.7]} 5. c4 {[%clk 0:03:01.5]}
5... Nc6 {[%clk 0:03:05.8]} 6. Be3 {[%clk 0:03:01.3]} 6... Nf6 {[%clk
0:03:06.1]} 7. Nc3 {[%clk 0:02:58.7]} 7... O-O {[%clk 0:03:07.1]} 8. Be2 {[%clk
0:02:52]} 8... d6 {[%clk 0:03:08.1]} 9. f3 {[%clk 0:02:46.3]} 9... Bd7 {[%clk
0:03:07.5]} 10. O-O {[%clk 0:02:46.7]} 10... a6 {[%clk 0:03:06]} 11. Qd2 {[%clk
0:02:19.3]} 11... Rb8 {[%clk 0:03:06.5]} 12. a4 {[%clk 0:02:09.3]} 12... Nxd4
{[%clk 0:02:59]} 13. Bxd4 {[%clk 0:02:07.6]} 13... Bc6 {[%clk 0:03:00.3]} 14.
Rfd1 {[%clk 0:01:49.4]} 14... a5 {[%clk 0:02:56.4]} 15. Nd5 {[%clk 0:01:36.1]}
15... Nd7 {[%clk 0:02:51.6]} 16. Bxg7 {[%clk 0:01:26.6]} 16... Kxg7 {[%clk
0:02:53.5]} 17. b4 {[%clk 0:01:10.9]} 17... axb4 {[%clk 0:02:49.9]} 18. Nxb4
{[%clk 0:01:10.3]} 18... Nc5 {[%clk 0:02:45.8]} 19. Nxc6 {[%clk 0:01:08.3]}
19... bxc6 {[%clk 0:02:47.7]} 20. a5 {[%clk 0:00:56.9]} 20... Ra8 {[%clk
0:02:42.9]} 21. Ra3 {[%clk 0:00:43.3]} 21... Qc7 {[%clk 0:02:37.4]} 22. Rda1
{[%clk 0:00:43.4]} 22... Ra6 {[%clk 0:02:36.9]} 23. Qd4+ {[%clk 0:00:31.3]}
23... Kg8 {[%clk 0:02:32.1]} 24. e5 {[%clk 0:00:30.8]} 24... Ne6 {[%clk
0:02:29.3]} 25. Qc3 {[%clk 0:00:27]} 25... Rfa8 {[%clk 0:02:26.6]} 26. exd6
{[%clk 0:00:24.9]} 26... exd6 {[%clk 0:02:24.8]} 27. c5 {[%clk 0:00:24.5]} 27...
R6a7 {[%clk 0:02:25.3]} 28. cxd6 {[%clk 0:00:24.1]} 28... Qxd6 {[%clk
0:02:25.8]} 29. a6 {[%clk 0:00:25.1]} 29... Nd4 {[%clk 0:02:22.1]} 30. Bc4
{[%clk 0:00:22.4]} 30... Nb5 {[%clk 0:02:20.6]} 31. Bxb5 {[%clk 0:00:20.9]}
31... cxb5 {[%clk 0:02:22.5]} 32. Ra5 {[%clk 0:00:17.6]} 32... b4 {[%clk
0:01:57]} 33. Qc4 {[%clk 0:00:15.1]} 33... Rb8 {[%clk 0:01:45.8]} 34. Rb5 {[%clk
0:00:10.6]} 34... Rxb5 {[%clk 0:01:44]} 35. Qxb5 {[%clk 0:00:12.3]} 35... Qd4+
{[%clk 0:01:45.7]} 36. Kf1 {[%clk 0:00:11]} 36... Qxa1+ {[%clk 0:01:43.5]} 37.
Kf2 {[%clk 0:00:11.5]} 37... Qxa6 {[%clk 0:01:44.5]} 0

[Event "Open Nuevo Centro. Jornada 1"]
[Site "Chess.com"]
[Date "2020.06.19"]
[Round "2"]
[White "Sanchis Bon, Sergi"]
[Black "Pitarch Soriano, Pablo"]
[Result "1-0"]
[WhiteElo "1021"]
[BlackElo "1074"]
[TimeControl "180+2"]
[EndTime "10:50:04 PDT"]
[Termination "Victoria de Sergi_2011 por jaque mate"]

1. e4 {[%clk 0:03:01.9]} 1... e5 {[%clk 0:03:00.3]} 2. Nf3 {[%clk 0:03:00.8]}
2... Nc6 {[%clk 0:03:02.1]} 3. g3 {[%clk 0:02:59.3]} 3... Nf6 {[%clk 0:03:04]}
4. Bg2 {[%clk 0:02:59.4]} 4... Be7 {[%clk 0:03:05.4]} 5. O-O {[%clk 0:02:59.6]}
5... O-O {[%clk 0:03:06.9]} 6. Nc3 {[%clk 0:02:55.2]} 6... d5 {[%clk 0:03:05]}
7. exd5 {[%clk 0:02:54.4]} 7... Nxd5 {[%clk 0:03:06.9]} 8. Nxd5 {[%clk
0:02:53.9]} 8... Qxd5 {[%clk 0:03:08.8]} 9. Nh4 {[%clk 0:02:44.3]} 9... Qe6
{[%clk 0:03:08]} 10. Re1 {[%clk 0:02:29.1]} 10... Bxh4 {[%clk 0:03:03.7]} 11.
gxh4 {[%clk 0:02:23.7]} 11... Nd4 {[%clk 0:03:00.6]} 12. c3 {[%clk 0:02:08.1]}
12... Nf5 {[%clk 0:02:59.2]} 13. Bh3 {[%clk 0:01:52.4]} 13... Qg6+ {[%clk
0:02:53.9]} 14. Kh1 {[%clk 0:01:35.8]} 14... Nxh4 {[%clk 0:02:53.9]} 15. Rg1
{[%clk 0:01:21.3]} 15... Qe4+ {[%clk 0:02:53]} 16. Bg2 {[%clk 0:01:11.1]} 16...
Nxg2 {[%clk 0:02:53.5]} 17. Rxg2 {[%clk 0:01:10]} 17... Bh3 {[%clk 0:02:55]} 18.
f3 {[%clk 0:01:06.6]} 18... Qf5 {[%clk 0:02:48.3]} 19. Rg3 {[%clk 0:00:55.3]}
19... e4 {[%clk 0:02:46]} 20. fxe4 {[%clk 0:00:46.7]} 20... Qxe4+ {[%clk
0:02:46.8]} 21. Qf3 {[%clk 0:00:42.3]} 21... Qxf3+ {[%clk 0:02:47]} 22. Rxf3
{[%clk 0:00:41.7]} 22... Bg4 {[%clk 0:02:47.9]} 23. Rg3 {[%clk 0:00:38.6]} 23...
Bd7 {[%clk 0:02:46.2]} 24. d4 {[%clk 0:00:32.8]} 24... Bc6+ {[%clk 0:02:47.1]}
25. Kg1 {[%clk 0:00:29.4]} 25... Rae8 {[%clk 0:02:49]} 26. Bh6 {[%clk
0:00:24.9]} 26... Ra8 {[%clk 0:02:50.9]} 27. Bxg7 {[%clk 0:00:21.3]} 27... Rae8
{[%clk 0:02:52.8]} 28. Bxf8+ {[%clk 0:00:21.3]} 28... Kxf8 {[%clk 0:02:51.8]}
29. Rh3 {[%clk 0:00:21.8]} 29... Kg7 {[%clk 0:02:51.1]} 30. Rg3+ {[%clk
0:00:22]} 30... Kf6 {[%clk 0:02:51.3]} 31. Rf1+ {[%clk 0:00:22.1]} 31... Ke7
{[%clk 0:02:51.4]} 32. Re3+ {[%clk 0:00:22.5]} 32... Kd7 {[%clk 0:02:52]} 33.
Rxf7+ {[%clk 0:00:20]} 33... Kd6 {[%clk 0:02:51.9]} 34. Rxe8 {[%clk 0:00:18.7]}
34... Bxe8 {[%clk 0:02:52.4]} 35. Rxh7 {[%clk 0:00:19]} 35... Bg6 {[%clk
0:02:51.5]} 36. Rh6 {[%clk 0:00:18.4]} 36... Ke7 {[%clk 0:02:51.7]} 37. Rxg6
{[%clk 0:00:18.9]} 37... Kd7 {[%clk 0:02:53.6]} 38. Rg5 {[%clk 0:00:19.6]} 38...
c6 {[%clk 0:02:55.5]} 39. Rf5 {[%clk 0:00:20]} 39... Kc7 {[%clk 0:02:57.4]} 40.
Rf7+ {[%clk 0:00:20.5]} 40... Kb6 {[%clk 0:02:59.3]} 41. Rf6 {[%clk 0:00:21.3]}
41... a6 {[%clk 0:03:01]} 42. a3 {[%clk 0:00:21.2]} 42... Kb5 {[%clk 0:03:02.9]}
43. b3 {[%clk 0:00:21.6]} 43... b6 {[%clk 0:03:04.8]} 44. c4+ {[%clk 0:00:21.7]}
44... Ka5 {[%clk 0:03:04.9]} 45. Rf5+ {[%clk 0:00:22.1]} 45... b5 {[%clk
0:03:04.1]} 46. b4+ {[%clk 0:00:21.6]} 46... Ka4 {[%clk 0:03:03.6]} 47. Rf3
{[%clk 0:00:20.3]} 47... bxc4 {[%clk 0:03:03.5]} 48. Rc3 {[%clk 0:00:18.5]}
48... a5 {[%clk 0:03:02.4]} 49. Rxc4 {[%clk 0:00:19.6]} 49... Kxa3 {[%clk
0:03:03.6]} 50. bxa5 {[%clk 0:00:19.9]} 50... Kb3 {[%clk 0:03:03.3]} 51. Rxc6
{[%clk 0:00:19.2]} 51... Kb4 {[%clk 0:03:04.8]} 52. a6 {[%clk 0:00:19.7]} 52...
Kb5 {[%clk 0:03:06.2]} 53. a7 {[%clk 0:00:21.3]} 53... Kxc6 {[%clk 0:03:07.2]}
54. a8=Q+ {[%clk 0:00:21.4]} 54... Kb5 {[%clk 0:03:09.1]} 55. d5 {[%clk
0:00:18]} 55... Kc4 {[%clk 0:03:11]} 56. d6 {[%clk 0:00:19]} 56... Kd4 {[%clk
0:03:12.9]} 57. d7 {[%clk 0:00:20]} 57... Ke5 {[%clk 0:03:14.8]} 58. d8=Q {[%clk
0:00:20.4]} 58... Ke6 {[%clk 0:03:16.7]} 59. Qac8+ {[%clk 0:00:20.9]} 59... Ke5
{[%clk 0:03:17.3]} 60. Qdc7+ {[%clk 0:00:20.6]} 60... Kd4 {[%clk 0:03:19.2]} 61.
Q8d7+ {[%clk 0:00:21.3]} 61... Ke3 {[%clk 0:03:21.1]} 62. Qe5+ {[%clk
0:00:21.4]} 62... Kf3 {[%clk 0:03:21.2]} 63. Qdf5# {[%clk 0:00:22]} 1